[Event "Titled Tuesday Blitz March 15 Late 2022"]
[White "Drozdowski, Kacper"]
[Black "Obolenskikh, Dmitry"]
[WhiteFideId "1136720"]
[BlackFideId "4156013"]
[WhiteElo "2938"]
[BlackElo "2792"]
[Result "1-0"]
[Round "04"]
[TimeControl "180+1"]
[Date "2022.03.15"]
[WhiteClock "0:00:32"]
[BlackClock "0:00:14"]

1. e4 {[%clk 0:03:00]}  e5 {[%clk 0:02:59]} 2. Nf3 {[%clk 0:02:57]}  Nc6 {[%clk 0:03:00]} 3. Bc4 {[%clk 0:02:56]}  Bc5 {[%clk 0:02:59]} 4. c3 {[%clk 0:02:56]}  Nf6 {[%clk 0:02:59]} 5. d3 {[%clk 0:02:57]}  d6 {[%clk 0:02:57]} 6. Bb3 {[%clk 0:02:57]}  Bb6 {[%clk 0:02:53]} 7. Nbd2 {[%clk 0:02:56]}  Be6 {[%clk 0:02:50]} 8. h3 {[%clk 0:02:56]}  Bxb3 {[%clk 0:02:50]} 9. axb3 {[%clk 0:02:56]}  O-O {[%clk 0:02:49]} 10. Nh2 {[%clk 0:02:56]}  Ne7 {[%clk 0:02:44]} 11. Ng4 {[%clk 0:02:50]}  Ng6 {[%clk 0:02:44]} 12. Nc4 {[%clk 0:02:42]}  Nd7 {[%clk 0:02:09]} 13. Qf3 {[%clk 0:02:36]}  c6 {[%clk 0:02:05]} 14. Nxb6 {[%clk 0:02:21]}  axb6 {[%clk 0:02:02]} 15. Rxa8 {[%clk 0:02:20]}  Qxa8 {[%clk 0:02:03]} 16. O-O {[%clk 0:02:20]}  Qa2 {[%clk 0:01:53]} 17. b4 {[%clk 0:02:20]}  Qe6 {[%clk 0:01:48]} 18. Ne3 {[%clk 0:02:18]}  Ne7 {[%clk 0:01:43]} 19. Nc4 {[%clk 0:02:11]}  f5 {[%clk 0:01:30]} 20. exf5 {[%clk 0:02:10]}  Nxf5 {[%clk 0:01:22]} 21. Re1 {[%clk 0:02:01]}  Ne7 {[%clk 0:01:09]} 22. Qg4 {[%clk 0:02:00]}  Nf5 {[%clk 0:00:54]} 23. f4 {[%clk 0:01:49]}  b5 {[%clk 0:00:50]} 24. Na5 {[%clk 0:01:48]}  Nf6 {[%clk 0:00:37]} 25. Qe2 {[%clk 0:01:41]}  Qd7 {[%clk 0:00:34]} 26. fxe5 {[%clk 0:01:40]}  dxe5 {[%clk 0:00:35]} 27. Bg5 {[%clk 0:01:29]}  Re8 {[%clk 0:00:25]} 28. Bxf6 {[%clk 0:01:26]}  gxf6 {[%clk 0:00:25]} 29. Nb3 {[%clk 0:01:20]}  Qd5 {[%clk 0:00:22]} 30. Nc5 {[%clk 0:01:19]}  Ng7 {[%clk 0:00:19]} 31. Ne4 {[%clk 0:01:17]}  Rf8 {[%clk 0:00:19]} 32. Qf3 {[%clk 0:01:03]}  f5 {[%clk 0:00:18]} 33. Nc5 {[%clk 0:01:02]}  Qxf3 {[%clk 0:00:18]} 34. gxf3 {[%clk 0:01:03]}  Re8 {[%clk 0:00:17]} 35. Nxb7 {[%clk 0:01:03]}  Nh5 {[%clk 0:00:16]} 36. Nd6 {[%clk 0:01:00]}  Rd8 {[%clk 0:00:16]} 37. Nxf5 {[%clk 0:00:59]}  Rxd3 {[%clk 0:00:16]} 38. Rxe5 {[%clk 0:00:59]}  Rxf3 {[%clk 0:00:16]} 39. Nh6+ {[%clk 0:00:53]}  Kg7 {[%clk 0:00:15]} 40. Rxh5 {[%clk 0:00:54]}  Kg6 {[%clk 0:00:16]} 41. Rc5 {[%clk 0:00:35]}  Kxh6 {[%clk 0:00:16]} 42. Rxc6+ {[%clk 0:00:35]}  Kg7 {[%clk 0:00:16]} 43. Kg2 {[%clk 0:00:34]}  Rd3 {[%clk 0:00:16]} 44. Rc5 {[%clk 0:00:34]}  Rd2+ {[%clk 0:00:16]} 45. Kg3 {[%clk 0:00:35]}  Rxb2 {[%clk 0:00:17]} 46. Rxb5 {[%clk 0:00:35]}  Kf6 {[%clk 0:00:17]} 47. Rc5 {[%clk 0:00:36]}  Ke6 {[%clk 0:00:16]} 48. b5 {[%clk 0:00:36]}  Kd7 {[%clk 0:00:16]} 49. c4 {[%clk 0:00:35]}  Rb4 {[%clk 0:00:16]} 50. Rc6 {[%clk 0:00:35]}  Rb1 {[%clk 0:00:15]} 51. h4 {[%clk 0:00:35]}  h5 {[%clk 0:00:14]} 52. Kf4 {[%clk 0:00:34]}  Rg1 {[%clk 0:00:14]} 53. Ke5 {[%clk 0:00:31]}  Rg4 {[%clk 0:00:14]} 54. Kd5 {[%clk 0:00:31]}  Rxh4 {[%clk 0:00:15]} 55. Rh6 {[%clk 0:00:31]}  Rh1 {[%clk 0:00:14]} 56. Rh7+ {[%clk 0:00:31]}  Kc8 {[%clk 0:00:15]} 57. Kc6 {[%clk 0:00:31]}  Kd8 {[%clk 0:00:14]} 58. Rh8+ {[%clk 0:00:31]}  Ke7 {[%clk 0:00:14]} 59. b6 {[%clk 0:00:32]} 1-0


[Site "https://www.chess.com"]

[Event "Titled Tuesday Blitz March 15 Late 2022"]
[White "Elissalt Cardenas, Hector"]
[Black "Chiu, Isaac"]
[WhiteFideId "3500632"]
[BlackFideId "30900654"]
[WhiteElo "2159"]
[BlackElo "2117"]
[Result "1/2-1/2"]
[Round "04"]
[TimeControl "180+1"]
[Date "2022.03.16"]
[WhiteClock "0:00:05"]
[BlackClock "0:00:07"]

1. d4 {[%clk 0:02:47]}  d5 {[%clk 0:02:58]} 2. c4 {[%clk 0:02:46]}  dxc4 {[%clk 0:02:58]} 3. Nf3 {[%clk 0:02:41]}  c6 {[%clk 0:02:54]} 4. e3 {[%clk 0:02:40]}  Be6 {[%clk 0:02:54]} 5. Nbd2 {[%clk 0:02:12]}  Nf6 {[%clk 0:02:51]} 6. Bxc4 {[%clk 0:02:08]}  Bd5 {[%clk 0:02:48]} 7. Bd3 {[%clk 0:01:59]}  Bxf3 {[%clk 0:02:20]} 8. Nxf3 {[%clk 0:01:54]}  e6 {[%clk 0:02:20]} 9. O-O {[%clk 0:01:50]}  c5 {[%clk 0:02:18]} 10. Qb3 {[%clk 0:01:36]}  Qc7 {[%clk 0:02:09]} 11. Bd2 {[%clk 0:01:35]}  Nc6 {[%clk 0:02:01]} 12. Rac1 {[%clk 0:01:33]}  cxd4 {[%clk 0:01:47]} 13. Nxd4 {[%clk 0:01:30]}  Nxd4 {[%clk 0:01:38]} 14. Rxc7 {[%clk 0:01:15]}  Nxb3 {[%clk 0:01:37]} 15. axb3 {[%clk 0:01:15]}  a6 {[%clk 0:00:57]} 16. Bc3 {[%clk 0:01:02]}  Rb8 {[%clk 0:00:43]} 17. Be5 {[%clk 0:00:56]}  Nd5 {[%clk 0:00:38]} 18. Rcc1 {[%clk 0:00:50]}  Rd8 {[%clk 0:00:32]} 19. Rfd1 {[%clk 0:00:50]}  f6 {[%clk 0:00:26]} 20. Bc7 {[%clk 0:00:29]}  Rc8 {[%clk 0:00:20]} 21. Ba5 {[%clk 0:00:25]}  Rxc1 {[%clk 0:00:10]} 22. Rxc1 {[%clk 0:00:24]}  Kd7 {[%clk 0:00:08]} 23. Be4 {[%clk 0:00:24]}  Bd6 {[%clk 0:00:08]} 24. Rd1 {[%clk 0:00:18]}  Kc6 {[%clk 0:00:06]} 25. Kf1 {[%clk 0:00:15]}  h5 {[%clk 0:00:07]} 26. Ke2 {[%clk 0:00:14]}  Rc8 {[%clk 0:00:07]} 27. Rc1+ {[%clk 0:00:12]}  Kd7 {[%clk 0:00:07]} 28. Rxc8 {[%clk 0:00:12]}  Kxc8 {[%clk 0:00:08]} 29. Bxd5 {[%clk 0:00:12]}  exd5 {[%clk 0:00:09]} 30. Bc3 {[%clk 0:00:12]}  Kd7 {[%clk 0:00:09]} 31. h3 {[%clk 0:00:11]}  Ke6 {[%clk 0:00:09]} 32. Kd3 {[%clk 0:00:11]}  b5 {[%clk 0:00:10]} 33. Bd4 {[%clk 0:00:11]}  g5 {[%clk 0:00:09]} 34. g4 {[%clk 0:00:10]}  h4 {[%clk 0:00:08]} 35. f3 {[%clk 0:00:08]}  f5 {[%clk 0:00:08]} 36. Bc3 {[%clk 0:00:05]}  Bc5 {[%clk 0:00:08]} 37. Bd4 {[%clk 0:00:05]}  Bd6 {[%clk 0:00:08]} 38. Bc3 {[%clk 0:00:05]}  Bc5 {[%clk 0:00:08]} 39. Bd4 {[%clk 0:00:05]}  Be7 {[%clk 0:00:08]} 40. Bc3 {[%clk 0:00:05]}  Bc5 {[%clk 0:00:07]} 1/2-1/2


[Site "https://www.chess.com"]

[Event "Titled Tuesday Blitz March 15 Late 2022"]
[White "Estrada Nieto, Julian"]
[Black "Sarkar, Justin"]
[WhiteFideId "5101018"]
[BlackFideId "2010011"]
[WhiteElo "2246"]
[BlackElo "2038"]
[Result "0-1"]
[Round "04"]
[TimeControl "180+1"]
[Date "2022.03.16"]
[WhiteClock "0:00:02"]
[BlackClock "0:00:05"]

1. e4 {[%clk 0:01:50]}  e5 {[%clk 0:02:58]} 2. Nf3 {[%clk 0:01:49]}  Nc6 {[%clk 0:02:56]} 3. Bb5 {[%clk 0:01:48]}  a6 {[%clk 0:02:55]} 4. Bxc6 {[%clk 0:01:46]}  dxc6 {[%clk 0:02:54]} 5. O-O {[%clk 0:01:47]}  Bd6 {[%clk 0:02:36]} 6. d4 {[%clk 0:01:45]}  exd4 {[%clk 0:02:36]} 7. Qxd4 {[%clk 0:01:46]}  f6 {[%clk 0:02:36]} 8. Nbd2 {[%clk 0:01:39]}  Nh6 {[%clk 0:02:16]} 9. Nc4 {[%clk 0:01:33]}  Nf7 {[%clk 0:02:14]} 10. Nxd6+ {[%clk 0:01:31]}  cxd6 {[%clk 0:02:09]} 11. Bf4 {[%clk 0:01:22]}  Bg4 {[%clk 0:01:50]} 12. Rad1 {[%clk 0:01:20]}  Ne5 {[%clk 0:01:02]} 13. Bxe5 {[%clk 0:01:06]}  dxe5 {[%clk 0:00:53]} 14. Qc3 {[%clk 0:00:47]}  Qe7 {[%clk 0:00:50]} 15. Rd3 {[%clk 0:00:44]}  O-O {[%clk 0:00:47]} 16. Rfd1 {[%clk 0:00:38]}  Rad8 {[%clk 0:00:44]} 17. h3 {[%clk 0:00:36]}  Bxf3 {[%clk 0:00:36]} 18. gxf3 {[%clk 0:00:32]}  Rxd3 {[%clk 0:00:28]} 19. Qxd3 {[%clk 0:00:31]}  g5 {[%clk 0:00:22]} 20. Kg2 {[%clk 0:00:25]}  Qe6 {[%clk 0:00:20]} 21. b3 {[%clk 0:00:24]}  Kg7 {[%clk 0:00:18]} 22. Qd6 {[%clk 0:00:20]}  Qxd6 {[%clk 0:00:16]} 23. Rxd6 {[%clk 0:00:20]}  Rf7 {[%clk 0:00:13]} 24. Kf1 {[%clk 0:00:19]}  Rc7 {[%clk 0:00:11]} 25. Ke2 {[%clk 0:00:17]}  h5 {[%clk 0:00:09]} 26. c4 {[%clk 0:00:17]}  h4 {[%clk 0:00:08]} 27. c5 {[%clk 0:00:16]}  Kf7 {[%clk 0:00:08]} 28. Kd3 {[%clk 0:00:16]}  Ke7 {[%clk 0:00:08]} 29. Kc4 {[%clk 0:00:14]}  Rc8 {[%clk 0:00:06]} 30. Kb4 {[%clk 0:00:13]}  Rf8 {[%clk 0:00:02]} 31. Ka5 {[%clk 0:00:13]}  f5 {[%clk 0:00:02]} 32. exf5 {[%clk 0:00:11]}  Rxf5 {[%clk 0:00:02]} 33. Rd3 {[%clk 0:00:11]}  e4 {[%clk 0:00:01]} 34. fxe4 {[%clk 0:00:10]}  Rxf2 {[%clk 0:00:02]} 35. a4 {[%clk 0:00:09]}  Rf4 {[%clk 0:00:01]} 36. Re3 {[%clk 0:00:07]}  g4 {[%clk 0:00:01]} 37. hxg4 {[%clk 0:00:07]}  Rxg4 {[%clk 0:00:02]} 38. Kb6 {[%clk 0:00:08]}  Rg3 {[%clk 0:00:02]} 39. Re1 {[%clk 0:00:06]}  Rxb3+ {[%clk 0:00:02]} 40. Kc7 {[%clk 0:00:06]}  h3 {[%clk 0:00:02]} 41. Rg1 {[%clk 0:00:06]}  Ke6 {[%clk 0:00:02]} 42. Rg6+ {[%clk 0:00:06]}  Ke5 {[%clk 0:00:02]} 43. Rh6 {[%clk 0:00:07]}  Kxe4 {[%clk 0:00:02]} 44. Rh7 {[%clk 0:00:06]}  Kd4 {[%clk 0:00:03]} 45. a5 {[%clk 0:00:06]}  Kxc5 {[%clk 0:00:03]} 46. Rh5+ {[%clk 0:00:06]}  Kb4 {[%clk 0:00:03]} 47. Kxb7 {[%clk 0:00:06]}  c5 {[%clk 0:00:03]} 48. Kxa6 {[%clk 0:00:06]}  c4 {[%clk 0:00:03]} 49. Kb6 {[%clk 0:00:05]}  Ka4+ {[%clk 0:00:03]} 50. Ka6 {[%clk 0:00:05]}  c3 {[%clk 0:00:03]} 51. Rh4+ {[%clk 0:00:04]}  Ka3 {[%clk 0:00:03]} 52. Rxh3 {[%clk 0:00:04]}  c2 {[%clk 0:00:03]} 53. Rh1 {[%clk 0:00:04]}  Rb1 {[%clk 0:00:04]} 54. Rh3+ {[%clk 0:00:04]}  Kb2 {[%clk 0:00:04]} 55. Rh2 {[%clk 0:00:03]}  Kb3 {[%clk 0:00:04]} 56. Rh3+ {[%clk 0:00:03]}  Kb4 {[%clk 0:00:04]} 57. Rh4+ {[%clk 0:00:03]}  Kc5 {[%clk 0:00:04]} 58. Rh8 {[%clk 0:00:03]}  c1=Q {[%clk 0:00:03]} 59. Rc8+ {[%clk 0:00:03]}  Kd6 {[%clk 0:00:04]} 60. Rxc1 {[%clk 0:00:04]}  Rxc1 {[%clk 0:00:04]} 61. Kb7 {[%clk 0:00:04]}  Rb1+ {[%clk 0:00:04]} 62. Ka7 {[%clk 0:00:04]}  Kc7 {[%clk 0:00:04]} 63. a6 {[%clk 0:00:04]}  Ra1 {[%clk 0:00:04]} 64. Ka8 {[%clk 0:00:02]}  Rxa6# {[%clk 0:00:05]} 0-1


[Site "https://www.chess.com"]

[Event "Titled Tuesday Blitz March 15 Late 2022"]
[White "Farmani Anosheh, Armin"]
[Black "Sztokbant, Bernardo Vainzoff"]
[WhiteFideId "24613240"]
[BlackFideId "2115956"]
[WhiteElo "2289"]
[BlackElo "2237"]
[Result "0-1"]
[Round "04"]
[TimeControl "180+1"]
[Date "2022.03.16"]
[WhiteClock "0:00:13"]
[BlackClock "0:00:31"]

1. d4 {[%clk 0:02:53]}  Nf6 {[%clk 0:02:57]} 2. c4 {[%clk 0:02:54]}  g6 {[%clk 0:02:57]} 3. f3 {[%clk 0:02:54]}  d5 {[%clk 0:02:49]} 4. cxd5 {[%clk 0:02:54]}  Nxd5 {[%clk 0:02:49]} 5. e4 {[%clk 0:02:55]}  Nb6 {[%clk 0:02:49]} 6. Nc3 {[%clk 0:02:55]}  Bg7 {[%clk 0:02:50]} 7. Be3 {[%clk 0:02:56]}  O-O {[%clk 0:02:50]} 8. Qd2 {[%clk 0:02:57]}  Nc6 {[%clk 0:02:39]} 9. O-O-O {[%clk 0:02:56]}  e5 {[%clk 0:02:36]} 10. d5 {[%clk 0:02:53]}  Nd4 {[%clk 0:02:37]} 11. h4 {[%clk 0:02:19]}  f5 {[%clk 0:02:08]} 12. h5 {[%clk 0:02:04]}  fxe4 {[%clk 0:02:03]} 13. hxg6 {[%clk 0:01:56]}  hxg6 {[%clk 0:02:03]} 14. fxe4 {[%clk 0:01:45]}  Bg4 {[%clk 0:02:01]} 15. Re1 {[%clk 0:01:45]}  Qf6 {[%clk 0:01:49]} 16. Bd3 {[%clk 0:01:42]}  Nd7 {[%clk 0:01:37]} 17. Nh3 {[%clk 0:01:39]}  Nc5 {[%clk 0:01:35]} 18. Bc2 {[%clk 0:01:15]}  b5 {[%clk 0:01:28]} 19. Kb1 {[%clk 0:00:45]}  b4 {[%clk 0:01:26]} 20. Na4 {[%clk 0:00:43]}  Nxc2 {[%clk 0:01:07]} 21. Qxc2 {[%clk 0:00:41]}  Nxe4 {[%clk 0:01:06]} 22. Bg5 {[%clk 0:00:34]}  Nxg5 {[%clk 0:01:04]} 23. Nxg5 {[%clk 0:00:29]}  Qxg5 {[%clk 0:01:05]} 24. Ka1 {[%clk 0:00:26]}  e4 {[%clk 0:00:49]} 25. Qxe4 {[%clk 0:00:20]}  Bf5 {[%clk 0:00:42]} 26. Qxb4 {[%clk 0:00:19]}  Rab8 {[%clk 0:00:41]} 27. Qa3 {[%clk 0:00:20]}  Qg4 {[%clk 0:00:34]} 28. Rhf1 {[%clk 0:00:14]}  Qxa4 {[%clk 0:00:32]} 29. Qxa4 {[%clk 0:00:13]}  Bxb2# {[%clk 0:00:31]} 0-1


[Site "https://www.chess.com"]

[Event "Titled Tuesday Blitz March 15 Late 2022"]
[White "Fier, Alexandr"]
[Black "Kovanova, Baira"]
[WhiteFideId "2107139"]
[BlackFideId "4164083"]
[WhiteElo "2571"]
[BlackElo "2190"]
[Result "0-1"]
[Round "04"]
[TimeControl "180+1"]
[Date "2022.03.16"]
[WhiteClock "0:02:05"]
[BlackClock "0:00:35"]

1. e4 {[%clk 0:03:00]}  e5 {[%clk 0:02:59]} 2. b3 {[%clk 0:03:01]}  Nc6 {[%clk 0:02:57]} 3. Bb2 {[%clk 0:03:00]}  Nf6 {[%clk 0:02:57]} 4. Nc3 {[%clk 0:03:00]}  Bc5 {[%clk 0:02:56]} 5. Nf3 {[%clk 0:03:01]}  a6 {[%clk 0:02:55]} 6. Qe2 {[%clk 0:03:01]}  d6 {[%clk 0:02:56]} 7. O-O-O {[%clk 0:03:00]}  Be6 {[%clk 0:02:53]} 8. h3 {[%clk 0:02:59]}  Qd7 {[%clk 0:02:53]} 9. g4 {[%clk 0:02:58]}  h6 {[%clk 0:02:51]} 10. Rg1 {[%clk 0:02:58]}  O-O-O {[%clk 0:02:51]} 11. Na4 {[%clk 0:02:56]}  Ba7 {[%clk 0:02:49]} 12. d4 {[%clk 0:02:56]}  exd4 {[%clk 0:02:49]} 13. Nxd4 {[%clk 0:02:57]}  Nxd4 {[%clk 0:02:49]} 14. Bxd4 {[%clk 0:02:58]}  Bxd4 {[%clk 0:02:49]} 15. Rxd4 {[%clk 0:02:59]}  Rhe8 {[%clk 0:02:44]} 16. f3 {[%clk 0:02:59]}  Qc6 {[%clk 0:02:42]} 17. Qd2 {[%clk 0:02:59]}  g5 {[%clk 0:02:33]} 18. Nc3 {[%clk 0:02:58]}  Nd7 {[%clk 0:02:32]} 19. Bc4 {[%clk 0:02:54]}  Ne5 {[%clk 0:02:30]} 20. Bd5 {[%clk 0:02:53]}  Bxd5 {[%clk 0:02:27]} 21. exd5 {[%clk 0:02:53]}  Qc5 {[%clk 0:02:23]} 22. Rf1 {[%clk 0:02:53]}  Re7 {[%clk 0:02:17]} 23. Kb2 {[%clk 0:02:53]}  Rde8 {[%clk 0:02:17]} 24. Ne4 {[%clk 0:02:52]}  Qb6 {[%clk 0:02:15]} 25. a4 {[%clk 0:02:50]}  a5 {[%clk 0:02:13]} 26. Nc3 {[%clk 0:02:49]}  c6 {[%clk 0:02:00]} 27. dxc6 {[%clk 0:02:48]}  bxc6 {[%clk 0:02:00]} 28. Ka2 {[%clk 0:02:47]}  d5 {[%clk 0:02:00]} 29. f4 {[%clk 0:02:46]}  Nd7 {[%clk 0:01:56]} 30. fxg5 {[%clk 0:02:45]}  hxg5 {[%clk 0:01:56]} 31. Rd3 {[%clk 0:02:40]}  f6 {[%clk 0:01:55]} 32. Rdf3 {[%clk 0:02:40]}  d4 {[%clk 0:01:47]} 33. Nd1 {[%clk 0:02:28]}  Re2 {[%clk 0:01:30]} 34. Qd3 {[%clk 0:02:28]}  Kb7 {[%clk 0:01:30]} 35. R3f2 {[%clk 0:02:27]}  R2e7 {[%clk 0:01:19]} 36. Nb2 {[%clk 0:02:26]}  Ne5 {[%clk 0:01:06]} 37. Qf5 {[%clk 0:02:26]}  Qc5 {[%clk 0:00:51]} 38. Qxf6 {[%clk 0:02:23]}  Rf7 {[%clk 0:00:50]} 39. Qxg5 {[%clk 0:02:23]}  Rxf2 {[%clk 0:00:50]} 40. Rxf2 {[%clk 0:02:24]}  d3 {[%clk 0:00:47]} 41. cxd3 {[%clk 0:02:17]}  Qxf2 {[%clk 0:00:46]} 42. Qg7+ {[%clk 0:02:15]}  Qf7 {[%clk 0:00:45]} 43. Qg5 {[%clk 0:02:15]}  Qd5 {[%clk 0:00:40]} 44. Qd2 {[%clk 0:02:14]}  Rf8 {[%clk 0:00:37]} 45. Ka3 {[%clk 0:02:12]}  Rf3 {[%clk 0:00:37]} 46. Nc4 {[%clk 0:02:06]}  Nxc4+ {[%clk 0:00:36]} 47. Ka2 {[%clk 0:02:05]}  Nxd2 {[%clk 0:00:35]} 0-1


[Site "https://www.chess.com"]

[Event "Titled Tuesday Blitz March 15 Late 2022"]
[White "Fishbein, Alexander"]
[Black "Jaskolka, Tomasz"]
[WhiteFideId "2000377"]
[BlackFideId "1170791"]
[WhiteElo "2442"]
[BlackElo "2073"]
[Result "1-0"]
[Round "04"]
[TimeControl "180+1"]
[Date "2022.03.16"]
[WhiteClock "0:00:04"]
[BlackClock "0:00:04"]

1. e4 {[%clk 0:03:00]}  c5 {[%clk 0:02:59]} 2. Nf3 {[%clk 0:02:59]}  e6 {[%clk 0:02:59]} 3. d4 {[%clk 0:02:58]}  cxd4 {[%clk 0:02:59]} 4. Nxd4 {[%clk 0:02:59]}  Nc6 {[%clk 0:02:58]} 5. Nc3 {[%clk 0:02:59]}  Qc7 {[%clk 0:02:57]} 6. g3 {[%clk 0:02:58]}  a6 {[%clk 0:02:54]} 7. Bg2 {[%clk 0:02:58]}  Nf6 {[%clk 0:02:55]} 8. O-O {[%clk 0:02:57]}  Nxd4 {[%clk 0:02:55]} 9. Qxd4 {[%clk 0:02:57]}  Bc5 {[%clk 0:02:56]} 10. Bf4 {[%clk 0:02:57]}  d6 {[%clk 0:02:54]} 11. Qd2 {[%clk 0:02:56]}  h6 {[%clk 0:02:54]} 12. Rad1 {[%clk 0:02:55]}  e5 {[%clk 0:02:52]} 13. Be3 {[%clk 0:02:54]}  Bb4 {[%clk 0:02:53]} 14. Nb5 {[%clk 0:02:49]}  axb5 {[%clk 0:02:52]} 15. Qxb4 {[%clk 0:02:49]}  Rxa2 {[%clk 0:02:52]} 16. Rxd6 {[%clk 0:02:37]}  O-O {[%clk 0:02:45]} 17. Rd2 {[%clk 0:01:57]}  Be6 {[%clk 0:02:44]} 18. h3 {[%clk 0:01:48]}  Rc8 {[%clk 0:02:34]} 19. Rfd1 {[%clk 0:01:47]}  Qc4 {[%clk 0:02:27]} 20. Qd6 {[%clk 0:01:27]}  Rxb2 {[%clk 0:02:12]} 21. Qxe5 {[%clk 0:01:24]}  Rxc2 {[%clk 0:02:10]} 22. Rxc2 {[%clk 0:01:16]}  Qxc2 {[%clk 0:02:09]} 23. Rc1 {[%clk 0:01:17]}  Qd3 {[%clk 0:01:34]} 24. Rxc8+ {[%clk 0:01:15]}  Bxc8 {[%clk 0:01:35]} 25. Qb8 {[%clk 0:01:11]}  Qd7 {[%clk 0:01:31]} 26. e5 {[%clk 0:01:09]}  Ne8 {[%clk 0:01:25]} 27. Bc5 {[%clk 0:01:01]}  Qc7 {[%clk 0:01:14]} 28. Qxc7 {[%clk 0:01:01]}  Nxc7 {[%clk 0:01:15]} 29. Bd6 {[%clk 0:01:01]}  Ne6 {[%clk 0:01:00]} 30. f4 {[%clk 0:01:00]}  b6 {[%clk 0:00:55]} 31. Kf2 {[%clk 0:01:00]}  f6 {[%clk 0:00:34]} 32. Ke3 {[%clk 0:00:57]}  fxe5 {[%clk 0:00:31]} 33. Bxe5 {[%clk 0:00:56]}  Kf7 {[%clk 0:00:29]} 34. Bd5 {[%clk 0:00:56]}  Ke7 {[%clk 0:00:26]} 35. f5 {[%clk 0:00:54]}  Nc5 {[%clk 0:00:24]} 36. g4 {[%clk 0:00:52]}  h5 {[%clk 0:00:13]} 37. Bxg7 {[%clk 0:00:49]}  hxg4 {[%clk 0:00:13]} 38. hxg4 {[%clk 0:00:49]}  b4 {[%clk 0:00:14]} 39. f6+ {[%clk 0:00:47]}  Kd6 {[%clk 0:00:12]} 40. Bc4 {[%clk 0:00:38]}  Bxg4 {[%clk 0:00:10]} 41. Bf8+ {[%clk 0:00:27]}  Ke5 {[%clk 0:00:05]} 42. Bxc5 {[%clk 0:00:22]}  Kxf6 {[%clk 0:00:05]} 43. Bxb6 {[%clk 0:00:22]}  Be6 {[%clk 0:00:05]} 44. Ba6 {[%clk 0:00:20]}  b3 {[%clk 0:00:06]} 45. Bd4+ {[%clk 0:00:20]}  Ke7 {[%clk 0:00:05]} 46. Ke4 {[%clk 0:00:19]}  Kd6 {[%clk 0:00:06]} 47. Be2 {[%clk 0:00:17]}  Bd5+ {[%clk 0:00:06]} 48. Ke3 {[%clk 0:00:17]}  Be6 {[%clk 0:00:06]} 49. Kd2 {[%clk 0:00:17]}  Bd5 {[%clk 0:00:06]} 50. Bh8 {[%clk 0:00:17]}  Be6 {[%clk 0:00:06]} 51. Kc3 {[%clk 0:00:17]}  Bd5 {[%clk 0:00:07]} 52. Kb4 {[%clk 0:00:16]}  Be6 {[%clk 0:00:06]} 53. Bd3 {[%clk 0:00:16]}  Bd5 {[%clk 0:00:06]} 54. Kb5 {[%clk 0:00:15]}  Ke6 {[%clk 0:00:06]} 55. Bc3 {[%clk 0:00:14]}  Kd6 {[%clk 0:00:06]} 56. Kb6 {[%clk 0:00:14]}  Be6 {[%clk 0:00:06]} 57. Bb2 {[%clk 0:00:12]}  Bd5 {[%clk 0:00:06]} 58. Kb5 {[%clk 0:00:11]}  Be6 {[%clk 0:00:06]} 59. Kb4 {[%clk 0:00:11]}  Bd5 {[%clk 0:00:06]} 60. Kc3 {[%clk 0:00:11]}  Be6 {[%clk 0:00:06]} 61. Kd4 {[%clk 0:00:12]}  Bg8 {[%clk 0:00:06]} 62. Ba3+ {[%clk 0:00:12]}  Kc6 {[%clk 0:00:06]} 63. Be4+ {[%clk 0:00:11]}  Kb5 {[%clk 0:00:06]} 64. Kc3 {[%clk 0:00:11]}  Be6 {[%clk 0:00:04]} 65. Bf8 {[%clk 0:00:10]}  Bf7 {[%clk 0:00:04]} 66. Bf5 {[%clk 0:00:10]}  Bd5 {[%clk 0:00:04]} 67. Bd7+ {[%clk 0:00:10]}  Kb6 {[%clk 0:00:03]} 68. Ba3 {[%clk 0:00:07]}  Bf7 {[%clk 0:00:03]} 69. Kd4 {[%clk 0:00:06]}  Bg8 {[%clk 0:00:03]} 70. Ke5 {[%clk 0:00:05]}  Bf7 {[%clk 0:00:03]} 71. Kd6 {[%clk 0:00:06]}  Bg8 {[%clk 0:00:03]} 72. Bc5+ {[%clk 0:00:06]}  Kb7 {[%clk 0:00:03]} 73. Bd4 {[%clk 0:00:05]}  Bf7 {[%clk 0:00:02]} 74. Bc6+ {[%clk 0:00:05]}  Ka6 {[%clk 0:00:03]} 75. Kc5 {[%clk 0:00:04]}  Bg8 {[%clk 0:00:02]} 76. Kb4 {[%clk 0:00:04]}  Bf7 {[%clk 0:00:02]} 77. Bd7 {[%clk 0:00:04]}  Kb7 {[%clk 0:00:02]} 78. Kc5 {[%clk 0:00:04]}  Kc7 {[%clk 0:00:03]} 79. Bc6 {[%clk 0:00:03]}  Bg8 {[%clk 0:00:03]} 80. Be5+ {[%clk 0:00:04]}  Kd8 {[%clk 0:00:04]} 81. Kd6 {[%clk 0:00:04]}  Bf7 {[%clk 0:00:04]} 82. Bd7 {[%clk 0:00:04]} 1-0


[Site "https://www.chess.com"]

[Event "Titled Tuesday Blitz March 15 Late 2022"]
[White "Garriga Cazorla, Pere"]
[Black "Lewicki, Miroslaw"]
[WhiteFideId "32011601"]
[BlackFideId "1113380"]
[WhiteElo "2458"]
[BlackElo "2283"]
[Result "0-1"]
[Round "04"]
[TimeControl "180+1"]
[Date "2022.03.16"]
[WhiteClock "0:01:33"]
[BlackClock "0:01:17"]

1. d4 {[%clk 0:03:00]}  Nf6 {[%clk 0:02:56]} 2. c4 {[%clk 0:03:01]}  e6 {[%clk 0:02:56]} 3. Nc3 {[%clk 0:03:01]}  d5 {[%clk 0:02:57]} 4. cxd5 {[%clk 0:03:01]}  exd5 {[%clk 0:02:58]} 5. Bg5 {[%clk 0:03:01]}  Nbd7 {[%clk 0:02:57]} 6. e3 {[%clk 0:03:01]}  Be7 {[%clk 0:02:57]} 7. Bd3 {[%clk 0:03:01]}  h6 {[%clk 0:02:57]} 8. Bh4 {[%clk 0:03:01]}  O-O {[%clk 0:02:55]} 9. Nge2 {[%clk 0:03:01]}  b6 {[%clk 0:02:56]} 10. Rb1 {[%clk 0:03:00]}  Bb7 {[%clk 0:02:56]} 11. b4 {[%clk 0:03:00]}  Ne4 {[%clk 0:02:48]} 12. Bxe7 {[%clk 0:03:00]}  Qxe7 {[%clk 0:02:49]} 13. Bxe4 {[%clk 0:02:56]}  dxe4 {[%clk 0:02:50]} 14. O-O {[%clk 0:02:56]}  Rad8 {[%clk 0:02:44]} 15. Qc2 {[%clk 0:02:53]}  Nf6 {[%clk 0:02:38]} 16. Rfc1 {[%clk 0:02:53]}  Bd5 {[%clk 0:02:36]} 17. Ng3 {[%clk 0:02:45]}  Rfe8 {[%clk 0:02:31]} 18. Nxd5 {[%clk 0:02:40]}  Nxd5 {[%clk 0:02:30]} 19. Qa4 {[%clk 0:02:36]}  g6 {[%clk 0:02:06]} 20. Ne2 {[%clk 0:02:31]}  a5 {[%clk 0:02:00]} 21. b5 {[%clk 0:02:28]}  Nb4 {[%clk 0:01:57]} 22. Rc4 {[%clk 0:02:23]}  Nd3 {[%clk 0:01:55]} 23. Nc1 {[%clk 0:02:21]}  Nf4 {[%clk 0:01:18]} 24. exf4 {[%clk 0:01:47]}  e3 {[%clk 0:01:18]} 25. Nd3 {[%clk 0:01:48]}  exf2+ {[%clk 0:01:18]} 26. Kxf2 {[%clk 0:01:33]}  Qe3+ {[%clk 0:01:17]} 0-1


[Site "https://www.chess.com"]